[Event "Titled Tuesday Blitz April 05 Early 2022"]
[White "Matveeva, Olga"]
[Black "Vovk, Orest"]
[WhiteFideId "24107018"]
[BlackFideId "14113490"]
[WhiteElo "2083"]
[BlackElo "2203"]
[Result "0-1"]
[Round "02"]
[TimeControl "180+1"]
[Date "2022.04.05"]
[WhiteClock "0:00:29"]
[BlackClock "0:02:17"]

1. d4 {[%clk 0:03:00]}  e5 {[%clk 0:02:59]} 2. dxe5 {[%clk 0:03:00]}  Nc6 {[%clk 0:02:58]} 3. Nf3 {[%clk 0:02:59]}  Qe7 {[%clk 0:02:58]} 4. e3 {[%clk 0:02:55]}  Nxe5 {[%clk 0:02:57]} 5. Be2 {[%clk 0:02:55]}  Nf6 {[%clk 0:02:57]} 6. O-O {[%clk 0:02:55]}  d5 {[%clk 0:02:57]} 7. b3 {[%clk 0:02:49]}  Nxf3+ {[%clk 0:02:56]} 8. Bxf3 {[%clk 0:02:49]}  Qe5 {[%clk 0:02:57]} 9. c3 {[%clk 0:02:48]}  Bd6 {[%clk 0:02:58]} 10. g3 {[%clk 0:02:46]}  Bh3 {[%clk 0:02:58]} 11. Re1 {[%clk 0:02:45]}  h5 {[%clk 0:02:58]} 12. Bb2 {[%clk 0:02:41]}  h4 {[%clk 0:02:56]} 13. Qe2 {[%clk 0:02:19]}  hxg3 {[%clk 0:02:54]} 14. fxg3 {[%clk 0:02:20]}  Qg5 {[%clk 0:02:46]} 15. Bg2 {[%clk 0:02:14]}  Bxg2 {[%clk 0:02:31]} 16. Qxg2 {[%clk 0:02:14]}  Ng4 {[%clk 0:02:30]} 17. h4 {[%clk 0:01:56]}  Qe5 {[%clk 0:02:30]} 18. c4 {[%clk 0:01:53]}  Qxg3 {[%clk 0:02:30]} 19. Qxg3 {[%clk 0:01:35]}  Bxg3 {[%clk 0:02:30]} 20. Re2 {[%clk 0:01:28]}  Rxh4 {[%clk 0:02:28]} 21. cxd5 {[%clk 0:01:25]}  O-O-O {[%clk 0:02:27]} 22. e4 {[%clk 0:01:18]}  Be5 {[%clk 0:02:22]} 23. Bxe5 {[%clk 0:01:01]}  Nxe5 {[%clk 0:02:23]} 24. Nc3 {[%clk 0:01:00]}  Rdh8 {[%clk 0:02:22]} 25. Kf2 {[%clk 0:00:55]}  Rh2+ {[%clk 0:02:21]} 26. Ke3 {[%clk 0:00:55]}  R8h3+ {[%clk 0:02:21]} 27. Kd2 {[%clk 0:00:54]}  Rd3+ {[%clk 0:02:20]} 28. Ke1 {[%clk 0:00:29]}  Rh1+ {[%clk 0:02:17]} 0-1


[Site "https://www.chess.com"]

[Event "Titled Tuesday Blitz April 05 Early 2022"]
[White "Melaugh, Shane"]
[Black "Omariev, Maksim"]
[WhiteFideId "2509580"]
[BlackFideId "4193423"]
[WhiteElo "1972"]
[BlackElo "2499"]
[Result "1-0"]
[Round "02"]
[TimeControl "180+1"]
[Date "2022.04.05"]
[WhiteClock "0:00:12"]
[BlackClock "0:00:02"]

1. c4 {[%clk 0:03:00]}  h5 {[%clk 0:03:00]} 2. d4 {[%clk 0:02:58]}  h4 {[%clk 0:03:01]} 3. Nc3 {[%clk 0:02:55]}  c6 {[%clk 0:03:01]} 4. e4 {[%clk 0:02:55]}  d6 {[%clk 0:03:02]} 5. Bg5 {[%clk 0:02:53]}  h3 {[%clk 0:02:58]} 6. Nxh3 {[%clk 0:02:49]}  Bxh3 {[%clk 0:02:58]} 7. gxh3 {[%clk 0:02:50]}  Qa5 {[%clk 0:02:57]} 8. Qd2 {[%clk 0:02:48]}  e5 {[%clk 0:02:42]} 9. dxe5 {[%clk 0:02:42]}  dxe5 {[%clk 0:02:39]} 10. O-O-O {[%clk 0:02:40]}  Be7 {[%clk 0:02:37]} 11. Rg1 {[%clk 0:02:32]}  g6 {[%clk 0:02:26]} 12. Bxe7 {[%clk 0:02:30]}  Nxe7 {[%clk 0:02:27]} 13. Qd6 {[%clk 0:02:28]}  Na6 {[%clk 0:02:06]} 14. Qd7+ {[%clk 0:02:27]}  Kf8 {[%clk 0:02:06]} 15. Qxb7 {[%clk 0:01:39]}  Rb8 {[%clk 0:02:01]} 16. Qxa7 {[%clk 0:01:38]}  Nc8 {[%clk 0:01:41]} 17. Qd7 {[%clk 0:01:08]}  Kg7 {[%clk 0:01:32]} 18. Be2 {[%clk 0:00:48]}  Rh6 {[%clk 0:01:05]} 19. Rg3 {[%clk 0:00:43]}  Nc5 {[%clk 0:00:56]} 20. Qxc6 {[%clk 0:00:37]}  Nb6 {[%clk 0:00:16]} 21. Rf3 {[%clk 0:00:29]}  Ne6 {[%clk 0:00:14]} 22. Qb5 {[%clk 0:00:20]}  Qxb5 {[%clk 0:00:08]} 23. Nxb5 {[%clk 0:00:21]}  Nf4 {[%clk 0:00:05]} 24. Bf1 {[%clk 0:00:20]}  Na4 {[%clk 0:00:03]} 25. b3 {[%clk 0:00:19]}  Nc5 {[%clk 0:00:03]} 26. Re3 {[%clk 0:00:19]}  Nce6 {[%clk 0:00:03]} 27. a3 {[%clk 0:00:17]}  Rhh8 {[%clk 0:00:03]} 28. a4 {[%clk 0:00:17]}  Rhc8 {[%clk 0:00:03]} 29. Kb2 {[%clk 0:00:17]}  g5 {[%clk 0:00:02]} 30. Rd7 {[%clk 0:00:17]}  Kg6 {[%clk 0:00:01]} 31. Nd6 {[%clk 0:00:14]}  Rd8 {[%clk 0:00:01]} 32. Rxd8 {[%clk 0:00:14]}  Rxd8 {[%clk 0:00:02]} 33. Nf5 {[%clk 0:00:13]}  f6 {[%clk 0:00:02]} 34. Kc3 {[%clk 0:00:11]}  Rb8 {[%clk 0:00:02]} 35. b4 {[%clk 0:00:11]}  Rd8 {[%clk 0:00:02]} 36. b5 {[%clk 0:00:11]}  Nd4 {[%clk 0:00:02]} 37. a5 {[%clk 0:00:11]}  Nxf5 {[%clk 0:00:02]} 38. exf5+ {[%clk 0:00:11]}  Kxf5 {[%clk 0:00:03]} 39. a6 {[%clk 0:00:11]}  Ne6 {[%clk 0:00:03]} 40. b6 {[%clk 0:00:11]}  Nc5 {[%clk 0:00:02]} 41. a7 {[%clk 0:00:12]}  Nb7 {[%clk 0:00:01]} 42. Kb4 {[%clk 0:00:12]}  Ke6 {[%clk 0:00:02]} 43. c5 {[%clk 0:00:12]}  f5 {[%clk 0:00:02]} 44. Kb5 {[%clk 0:00:12]}  e4 {[%clk 0:00:03]} 45. c6 {[%clk 0:00:12]}  Nd6+ {[%clk 0:00:03]} 46. Ka6 {[%clk 0:00:12]}  Kd5 {[%clk 0:00:03]} 47. b7 {[%clk 0:00:12]}  Nxb7 {[%clk 0:00:02]} 48. cxb7 {[%clk 0:00:12]} 1-0


[Site "https://www.chess.com"]

[Event "Titled Tuesday Blitz April 05 Early 2022"]
[White "Mickiewicz, Piotr"]
[Black "Rosenberg, Evan S"]
[WhiteFideId "1114891"]
[BlackFideId "2019299"]
[WhiteElo "2266"]
[BlackElo "2268"]
[Result "1-0"]
[Round "02"]
[TimeControl "180+1"]
[Date "2022.04.05"]
[WhiteClock "0:00:30"]
[BlackClock "0:00:01"]

1. e4 {[%clk 0:03:00]}  e5 {[%clk 0:02:55]} 2. Nf3 {[%clk 0:03:00]}  Nc6 {[%clk 0:02:55]} 3. Bc4 {[%clk 0:03:00]}  Bc5 {[%clk 0:02:55]} 4. d3 {[%clk 0:02:57]}  Nf6 {[%clk 0:02:52]} 5. Nbd2 {[%clk 0:02:56]}  O-O {[%clk 0:02:46]} 6. O-O {[%clk 0:02:50]}  d5 {[%clk 0:02:45]} 7. exd5 {[%clk 0:02:48]}  Nxd5 {[%clk 0:02:46]} 8. Re1 {[%clk 0:02:46]}  Bg4 {[%clk 0:02:39]} 9. h3 {[%clk 0:02:42]}  Bh5 {[%clk 0:02:39]} 10. Ne4 {[%clk 0:02:34]}  Bb6 {[%clk 0:02:35]} 11. Ng3 {[%clk 0:02:33]}  Bg6 {[%clk 0:02:24]} 12. Nxe5 {[%clk 0:02:25]}  Nxe5 {[%clk 0:02:24]} 13. Rxe5 {[%clk 0:02:25]}  c6 {[%clk 0:02:25]} 14. Bxd5 {[%clk 0:02:19]}  cxd5 {[%clk 0:02:25]} 15. Qf3 {[%clk 0:02:19]}  Qc7 {[%clk 0:02:14]} 16. Re2 {[%clk 0:02:15]}  Rad8 {[%clk 0:02:06]} 17. Bf4 {[%clk 0:02:14]}  Qc5 {[%clk 0:01:52]} 18. Rae1 {[%clk 0:02:13]}  Rd7 {[%clk 0:01:36]} 19. c3 {[%clk 0:02:12]}  d4 {[%clk 0:01:27]} 20. c4 {[%clk 0:02:11]}  Ba5 {[%clk 0:01:23]} 21. Bd2 {[%clk 0:02:08]}  Bxd2 {[%clk 0:01:20]} 22. Rxd2 {[%clk 0:02:08]}  a5 {[%clk 0:01:14]} 23. a3 {[%clk 0:02:07]}  a4 {[%clk 0:01:14]} 24. Rde2 {[%clk 0:02:06]}  h6 {[%clk 0:01:12]} 25. Ne4 {[%clk 0:02:05]}  Qb6 {[%clk 0:01:06]} 26. h4 {[%clk 0:01:47]}  Qa5 {[%clk 0:00:56]} 27. Ng3 {[%clk 0:01:45]}  b5 {[%clk 0:00:54]} 28. h5 {[%clk 0:01:37]}  Bh7 {[%clk 0:00:54]} 29. Re5 {[%clk 0:01:16]}  Qd2 {[%clk 0:00:52]} 30. cxb5 {[%clk 0:01:15]}  Qxb2 {[%clk 0:00:44]} 31. Qc6 {[%clk 0:01:13]}  Rdd8 {[%clk 0:00:34]} 32. Ne4 {[%clk 0:01:12]}  Rc8 {[%clk 0:00:31]} 33. Qd7 {[%clk 0:00:51]}  Qxa3 {[%clk 0:00:30]} 34. b6 {[%clk 0:00:39]}  Rc1 {[%clk 0:00:20]} 35. Nd6 {[%clk 0:00:33]}  Rxe1+ {[%clk 0:00:15]} 36. Rxe1 {[%clk 0:00:34]}  Qb4 {[%clk 0:00:13]} 37. Re8 {[%clk 0:00:33]}  Qb1+ {[%clk 0:00:03]} 38. Kh2 {[%clk 0:00:31]}  Qxb6 {[%clk 0:00:01]} 39. Rxf8+ {[%clk 0:00:30]}  Kxf8 {[%clk 0:00:01]} 40. Qxf7# {[%clk 0:00:30]} 1-0


[Site "https://www.chess.com"]

[Event "Titled Tuesday Blitz April 05 Early 2022"]
[White "Mirzoev, Azer"]
[Black "Devaev, Alexander"]
[WhiteFideId "13400304"]
[BlackFideId "4169395"]
[WhiteElo "2737"]
[BlackElo "2413"]
[Result "0-1"]
[Round "02"]
[TimeControl "180+1"]
[Date "2022.04.05"]
[WhiteClock "0:00:01"]
[BlackClock "0:00:09"]

1. c4 {[%clk 0:03:00]}  c5 {[%clk 0:02:59]} 2. Nc3 {[%clk 0:02:59]}  e6 {[%clk 0:03:00]} 3. g3 {[%clk 0:03:00]}  Nf6 {[%clk 0:02:56]} 4. Bg2 {[%clk 0:03:01]}  Be7 {[%clk 0:02:56]} 5. Nf3 {[%clk 0:02:58]}  O-O {[%clk 0:02:57]} 6. O-O {[%clk 0:02:59]}  Nc6 {[%clk 0:02:57]} 7. d4 {[%clk 0:02:59]}  cxd4 {[%clk 0:02:58]} 8. Nxd4 {[%clk 0:03:00]}  Ne5 {[%clk 0:02:59]} 9. b3 {[%clk 0:02:59]}  d6 {[%clk 0:02:59]} 10. Bb2 {[%clk 0:02:59]}  a6 {[%clk 0:03:00]} 11. Qd2 {[%clk 0:02:55]}  Qc7 {[%clk 0:03:00]} 12. Rfd1 {[%clk 0:02:54]}  Rb8 {[%clk 0:03:00]} 13. Rac1 {[%clk 0:02:54]}  Re8 {[%clk 0:03:00]} 14. f4 {[%clk 0:02:51]}  Ng6 {[%clk 0:02:59]} 15. e3 {[%clk 0:02:45]}  Bf8 {[%clk 0:02:59]} 16. h3 {[%clk 0:02:45]}  h6 {[%clk 0:02:58]} 17. Kh2 {[%clk 0:02:45]}  Nd7 {[%clk 0:02:55]} 18. e4 {[%clk 0:02:33]}  b6 {[%clk 0:02:52]} 19. h4 {[%clk 0:02:19]}  Be7 {[%clk 0:02:42]} 20. f5 {[%clk 0:02:11]}  Nge5 {[%clk 0:02:41]} 21. fxe6 {[%clk 0:02:09]}  Nc5 {[%clk 0:02:39]} 22. Nd5 {[%clk 0:02:07]}  Qd8 {[%clk 0:02:38]} 23. exf7+ {[%clk 0:02:05]}  Kxf7 {[%clk 0:02:37]} 24. Kh1 {[%clk 0:01:58]}  Bb7 {[%clk 0:02:29]} 25. Nf5 {[%clk 0:01:53]}  Bf8 {[%clk 0:02:28]} 26. Rf1 {[%clk 0:01:49]}  Kg8 {[%clk 0:02:28]} 27. Rcd1 {[%clk 0:01:47]}  b5 {[%clk 0:02:23]} 28. cxb5 {[%clk 0:01:46]}  axb5 {[%clk 0:02:23]} 29. Ba1 {[%clk 0:01:26]}  b4 {[%clk 0:02:04]} 30. Qf4 {[%clk 0:01:00]}  Ba6 {[%clk 0:01:53]} 31. Rg1 {[%clk 0:00:58]}  Ncd3 {[%clk 0:01:45]} 32. Qe3 {[%clk 0:00:56]}  Ng4 {[%clk 0:01:45]} 33. Rxd3 {[%clk 0:00:44]}  Nxe3 {[%clk 0:00:58]} 34. Rxe3 {[%clk 0:00:45]}  Bb7 {[%clk 0:00:57]} 35. Nxh6+ {[%clk 0:00:42]}  Kh7 {[%clk 0:00:54]} 36. Nf7 {[%clk 0:00:39]}  Qa5 {[%clk 0:00:46]} 37. Ng5+ {[%clk 0:00:38]}  Kg8 {[%clk 0:00:46]} 38. Rd3 {[%clk 0:00:27]}  Qxa2 {[%clk 0:00:45]} 39. Bd4 {[%clk 0:00:25]}  Bxd5 {[%clk 0:00:38]} 40. exd5 {[%clk 0:00:25]}  Re2 {[%clk 0:00:28]} 41. Ne6 {[%clk 0:00:23]}  Rc8 {[%clk 0:00:26]} 42. Nf4 {[%clk 0:00:23]}  Rd2 {[%clk 0:00:24]} 43. Rxd2 {[%clk 0:00:21]}  Qxd2 {[%clk 0:00:24]} 44. Ne6 {[%clk 0:00:20]}  Rc2 {[%clk 0:00:20]} 45. Kh2 {[%clk 0:00:19]}  Ra2 {[%clk 0:00:18]} 46. Kh3 {[%clk 0:00:18]}  Qe2 {[%clk 0:00:17]} 47. Nf4 {[%clk 0:00:17]}  Qc2 {[%clk 0:00:13]} 48. Re1 {[%clk 0:00:14]}  Qxb3 {[%clk 0:00:12]} 49. Re8 {[%clk 0:00:11]}  Rxg2 {[%clk 0:00:13]} 50. Kxg2 {[%clk 0:00:10]}  Qc2+ {[%clk 0:00:12]} 51. Re2 {[%clk 0:00:09]}  Qf5 {[%clk 0:00:12]} 52. Rb2 {[%clk 0:00:09]}  Qe4+ {[%clk 0:00:12]} 53. Kh2 {[%clk 0:00:04]}  Qxd4 {[%clk 0:00:12]} 54. Rb3 {[%clk 0:00:04]}  Qc4 {[%clk 0:00:12]} 55. Re3 {[%clk 0:00:03]}  b3 {[%clk 0:00:13]} 56. Re8 {[%clk 0:00:04]}  Qb5 {[%clk 0:00:11]} 57. Rc8 {[%clk 0:00:01]}  Qb7 {[%clk 0:00:09]} 0-1


[Site "https://www.chess.com"]

[Event "Titled Tuesday Blitz April 05 Early 2022"]
[White "Mkrtchyan, Mariam"]
[Black "Sarkar, Justin"]
[WhiteFideId "13310828"]
[BlackFideId "2010011"]
[WhiteElo "1984"]
[BlackElo "2038"]
[Result "1/2-1/2"]
[Round "02"]
[TimeControl "180+1"]
[Date "2022.04.05"]
[WhiteClock "0:00:05"]
[BlackClock "0:00:03"]

1. Nf3 {[%clk 0:03:00]}  d5 {[%clk 0:02:54]} 2. g3 {[%clk 0:03:01]}  Nf6 {[%clk 0:02:41]} 3. Bg2 {[%clk 0:03:01]}  Nbd7 {[%clk 0:02:41]} 4. d4 {[%clk 0:03:00]}  Nb6 {[%clk 0:02:30]} 5. O-O {[%clk 0:03:00]}  Bf5 {[%clk 0:02:26]} 6. b3 {[%clk 0:02:55]}  e6 {[%clk 0:02:24]} 7. Bb2 {[%clk 0:02:53]}  Be7 {[%clk 0:02:22]} 8. Nbd2 {[%clk 0:02:53]}  O-O {[%clk 0:02:13]} 9. c4 {[%clk 0:02:52]}  c5 {[%clk 0:01:52]} 10. cxd5 {[%clk 0:02:42]}  Nbxd5 {[%clk 0:01:48]} 11. Rc1 {[%clk 0:02:28]}  cxd4 {[%clk 0:01:26]} 12. Nxd4 {[%clk 0:02:27]}  Bg6 {[%clk 0:01:26]} 13. Nc4 {[%clk 0:02:13]}  Rc8 {[%clk 0:01:18]} 14. a3 {[%clk 0:02:06]}  a6 {[%clk 0:01:12]} 15. e3 {[%clk 0:01:48]}  Be4 {[%clk 0:00:59]} 16. Qe2 {[%clk 0:01:37]}  Bxg2 {[%clk 0:00:55]} 17. Kxg2 {[%clk 0:01:37]}  b5 {[%clk 0:00:47]} 18. Ne5 {[%clk 0:01:33]}  Qb6 {[%clk 0:00:44]} 19. Ndc6 {[%clk 0:01:16]}  Bd6 {[%clk 0:00:36]} 20. Rfd1 {[%clk 0:01:11]}  Qb7 {[%clk 0:00:22]} 21. e4 {[%clk 0:00:50]}  Bxe5 {[%clk 0:00:12]} 22. Nxe5 {[%clk 0:00:47]}  Rxc1 {[%clk 0:00:06]} 23. Rxc1 {[%clk 0:00:43]}  Ne7 {[%clk 0:00:02]} 24. f3 {[%clk 0:00:41]}  Ng6 {[%clk 0:00:02]} 25. Nd3 {[%clk 0:00:37]}  Rc8 {[%clk 0:00:02]} 26. Nc5 {[%clk 0:00:36]}  Qb8 {[%clk 0:00:01]} 27. b4 {[%clk 0:00:24]}  h6 {[%clk 0:00:01]} 28. Nxa6 {[%clk 0:00:21]}  Qb7 {[%clk 0:00:01]} 29. Nc5 {[%clk 0:00:21]}  Qc6 {[%clk 0:00:01]} 30. Qe3 {[%clk 0:00:16]}  Qe8 {[%clk 0:00:01]} 31. Nd3 {[%clk 0:00:16]}  Nd7 {[%clk 0:00:01]} 32. Rxc8 {[%clk 0:00:15]}  Qxc8 {[%clk 0:00:02]} 33. Qd2 {[%clk 0:00:15]}  Qc7 {[%clk 0:00:02]} 34. Qc3 {[%clk 0:00:14]}  Qxc3 {[%clk 0:00:02]} 35. Bxc3 {[%clk 0:00:15]}  Nb6 {[%clk 0:00:02]} 36. Nb2 {[%clk 0:00:14]}  Ne7 {[%clk 0:00:02]} 37. Kf2 {[%clk 0:00:15]}  Nc6 {[%clk 0:00:02]} 38. Ke3 {[%clk 0:00:15]}  e5 {[%clk 0:00:02]} 39. Kd3 {[%clk 0:00:15]}  f6 {[%clk 0:00:02]} 40. Kc2 {[%clk 0:00:16]}  Kf7 {[%clk 0:00:02]} 41. Kb3 {[%clk 0:00:15]}  Ke6 {[%clk 0:00:03]} 42. Nd1 {[%clk 0:00:15]}  Nc4 {[%clk 0:00:03]} 43. Bb2 {[%clk 0:00:14]}  Nd2+ {[%clk 0:00:02]} 44. Kc2 {[%clk 0:00:14]}  Nxf3 {[%clk 0:00:03]} 45. Kd3 {[%clk 0:00:13]}  Nxh2 {[%clk 0:00:03]} 46. Nc3 {[%clk 0:00:13]}  Na7 {[%clk 0:00:03]} 47. Bc1 {[%clk 0:00:13]}  Ng4 {[%clk 0:00:03]} 48. Nd5 {[%clk 0:00:11]}  h5 {[%clk 0:00:02]} 49. Bd2 {[%clk 0:00:09]}  g5 {[%clk 0:00:02]} 50. Ke2 {[%clk 0:00:08]}  Nh2 {[%clk 0:00:02]} 51. Nc3 {[%clk 0:00:07]}  Ng4 {[%clk 0:00:02]} 52. Kf3 {[%clk 0:00:07]}  Nh2+ {[%clk 0:00:02]} 53. Kg2 {[%clk 0:00:07]}  Ng4 {[%clk 0:00:02]} 54. Nd5 {[%clk 0:00:06]}  Nh6 {[%clk 0:00:02]} 55. Nc3 {[%clk 0:00:06]}  Ng4 {[%clk 0:00:01]} 56. Kf3 {[%clk 0:00:06]}  Nc6 {[%clk 0:00:01]} 57. Nxb5 {[%clk 0:00:05]}  f5 {[%clk 0:00:01]} 58. exf5+ {[%clk 0:00:05]}  Kxf5 {[%clk 0:00:02]} 59. Nd6+ {[%clk 0:00:06]}  Ke6 {[%clk 0:00:02]} 60. Ne4 {[%clk 0:00:06]}  Nd4+ {[%clk 0:00:03]} 61. Kg2 {[%clk 0:00:07]}  Kd5 {[%clk 0:00:03]} 62. Nxg5 {[%clk 0:00:07]}  Nc2 {[%clk 0:00:03]} 63. Bc1 {[%clk 0:00:07]}  Nge3+ {[%clk 0:00:02]} 64. Bxe3 {[%clk 0:00:06]}  Nxe3+ {[%clk 0:00:02]} 65. Kf3 {[%clk 0:00:07]}  Nc2 {[%clk 0:00:03]} 66. g4 {[%clk 0:00:05]}  hxg4+ {[%clk 0:00:02]} 67. Kxg4 {[%clk 0:00:05]}  Nxa3 {[%clk 0:00:02]} 68. Nf3 {[%clk 0:00:05]}  Kc4 {[%clk 0:00:02]} 69. Nxe5+ {[%clk 0:00:05]}  Kxb4 {[%clk 0:00:03]} 1/2-1/2


[Site "https://www.chess.com"]

[Event "Titled Tuesday Blitz April 05 Early 2022"]
[White "Muradov, Soltan"]
[Black "Zavgorodniy, Sergiy"]
[WhiteFideId "14002108"]
[BlackFideId "14110148"]
[WhiteElo "1854"]
[BlackElo "2420"]
[Result "0-1"]
[Round "02"]
[TimeControl "180+1"]
[Date "2022.04.05"]
[WhiteClock "0:00:35"]
[BlackClock "0:00:59"]

1. Nf3 {[%clk 0:02:57]}  Nf6 {[%clk 0:02:57]} 2. d4 {[%clk 0:02:58]}  e6 {[%clk 0:02:47]} 3. e3 {[%clk 0:02:58]}  b6 {[%clk 0:02:45]} 4. b3 {[%clk 0:02:58]}  Bb7 {[%clk 0:02:44]} 5. Bb2 {[%clk 0:02:59]}  Be7 {[%clk 0:02:35]} 6. c4 {[%clk 0:02:59]}  O-O {[%clk 0:02:34]} 7. Bd3 {[%clk 0:02:58]}  Bb4+ {[%clk 0:02:32]} 8. Nbd2 {[%clk 0:02:58]}  Qe7 {[%clk 0:02:27]} 9. O-O {[%clk 0:02:56]}  Bxd2 {[%clk 0:02:26]} 10. Nxd2 {[%clk 0:02:38]}  d6 {[%clk 0:02:26]} 11. e4 {[%clk 0:02:36]}  Nbd7 {[%clk 0:02:26]} 12. f4 {[%clk 0:02:32]}  e5 {[%clk 0:02:21]} 13. fxe5 {[%clk 0:02:07]}  dxe5 {[%clk 0:02:20]} 14. d5 {[%clk 0:02:08]}  c5 {[%clk 0:02:13]} 15. Rf2 {[%clk 0:01:42]}  Ne8 {[%clk 0:02:12]} 16. Nf1 {[%clk 0:01:41]}  Nd6 {[%clk 0:02:09]} 17. Ng3 {[%clk 0:01:38]}  g6 {[%clk 0:02:09]} 18. Qe2 {[%clk 0:01:37]}  f6 {[%clk 0:02:08]} 19. Raf1 {[%clk 0:01:37]}  a6 {[%clk 0:01:45]} 20. h4 {[%clk 0:01:31]}  b5 {[%clk 0:01:42]} 21. Bc1 {[%clk 0:01:30]}  b4 {[%clk 0:01:37]} 22. Bh6 {[%clk 0:01:29]}  Rfe8 {[%clk 0:01:25]} 23. Qg4 {[%clk 0:01:22]}  Nf7 {[%clk 0:01:21]} 24. Be3 {[%clk 0:01:17]}  Kh8 {[%clk 0:01:16]} 25. h5 {[%clk 0:01:07]}  Rg8 {[%clk 0:01:15]} 26. hxg6 {[%clk 0:01:06]}  Rxg6 {[%clk 0:01:14]} 27. Qh3 {[%clk 0:01:03]}  Nd6 {[%clk 0:01:10]} 28. Kh1 {[%clk 0:00:52]}  Rag8 {[%clk 0:01:10]} 29. Be2 {[%clk 0:00:45]}  Rxg3 {[%clk 0:01:07]} 30. Qh6 {[%clk 0:00:42]}  R8g6 {[%clk 0:01:06]} 31. Qh5 {[%clk 0:00:35]}  Rxe3 {[%clk 0:01:05]} 32. Bg4 {[%clk 0:00:35]}  Nf8 {[%clk 0:00:59]} 0-1


[Site "https://www.chess.com"]

[Event "Titled Tuesday Blitz April 05 Early 2022"]
[White "Murzin, Volodar"]
[Black "Roberson, Peter T"]
[WhiteFideId "44155573"]
[BlackFideId "412384"]
[WhiteElo "2782"]
[BlackElo "2543"]
[Result "1-0"]
[Round "02"]
[TimeControl "180+1"]
[Date "2022.04.05"]
[WhiteClock "0:00:58"]
[BlackClock "0:00:32"]

1. e4 {[%clk 0:03:00]}  c5 {[%clk 0:02:58]} 2. Nf3 {[%clk 0:03:00]}  d6 {[%clk 0:02:58]} 3. d4 {[%clk 0:02:58]}  cxd4 {[%clk 0:02:59]} 4. Nxd4 {[%clk 0:02:58]}  Nf6 {[%clk 0:02:59]} 5. Nc3 {[%clk 0:02:58]}  a6 {[%clk 0:02:59]} 6. Be3 {[%clk 0:02:57]}  Ng4 {[%clk 0:02:57]} 7. Bc1 {[%clk 0:02:56]}  Nc6 {[%clk 0:02:52]} 8. f3 {[%clk 0:02:53]}  Nf6 {[%clk 0:02:53]} 9. Be3 {[%clk 0:02:52]}  e5 {[%clk 0:02:52]} 10. Nb3 {[%clk 0:02:36]}  Be6 {[%clk 0:02:52]} 11. Nd5 {[%clk 0:02:23]}  Be7 {[%clk 0:02:42]} 12. Bb6 {[%clk 0:02:20]}  Qb8 {[%clk 0:02:37]} 13. Nc7+ {[%clk 0:02:19]}  Kf8 {[%clk 0:02:37]} 14. Nxa8 {[%clk 0:02:19]}  Qxa8 {[%clk 0:02:38]} 15. c4 {[%clk 0:02:20]}  g6 {[%clk 0:02:36]} 16. Qd2 {[%clk 0:02:17]}  Kg7 {[%clk 0:02:36]} 17. Be2 {[%clk 0:02:16]}  Nd7 {[%clk 0:02:33]} 18. Be3 {[%clk 0:02:15]}  b5 {[%clk 0:02:31]} 19. Bh6+ {[%clk 0:02:13]}  Kg8 {[%clk 0:02:31]} 20. Rc1 {[%clk 0:02:12]}  f5 {[%clk 0:02:26]} 21. cxb5 {[%clk 0:02:08]}  axb5 {[%clk 0:02:26]} 22. Bxb5 {[%clk 0:02:09]}  Nd4 {[%clk 0:02:19]} 23. Nxd4 {[%clk 0:02:08]}  exd4 {[%clk 0:02:20]} 24. Bxd7 {[%clk 0:02:06]}  Bxd7 {[%clk 0:02:19]} 25. Qxd4 {[%clk 0:02:06]}  Kf7 {[%clk 0:02:16]} 26. Qg7+ {[%clk 0:02:03]}  Ke6 {[%clk 0:02:16]} 27. exf5+ {[%clk 0:02:03]}  gxf5 {[%clk 0:02:16]} 28. O-O {[%clk 0:02:03]}  Bf6 {[%clk 0:01:58]} 29. Rfe1+ {[%clk 0:01:58]}  Be5 {[%clk 0:01:58]} 30. f4 {[%clk 0:01:59]}  Rg8 {[%clk 0:01:59]} 31. Rxe5+ {[%clk 0:01:45]}  dxe5 {[%clk 0:01:59]} 32. Qxe5+ {[%clk 0:01:45]}  Kf7 {[%clk 0:02:00]} 33. Bg5 {[%clk 0:01:46]}  Re8 {[%clk 0:01:48]} 34. Qf6+ {[%clk 0:01:43]}  Kg8 {[%clk 0:01:49]} 35. Bh6 {[%clk 0:01:38]}  Qa7+ {[%clk 0:01:33]} 36. Kh1 {[%clk 0:01:37]}  Be6 {[%clk 0:01:03]} 37. h3 {[%clk 0:01:30]}  Bd5 {[%clk 0:01:00]} 38. Kh2 {[%clk 0:01:11]}  Bxg2 {[%clk 0:00:54]} 39. Rg1 {[%clk 0:01:08]}  Qxg1+ {[%clk 0:00:36]} 40. Kxg1 {[%clk 0:01:02]}  Re1+ {[%clk 0:00:36]} 41. Kf2 {[%clk 0:00:58]}  Re2+ {[%clk 0:00:32]} 42. Kxe2 {[%clk 0:00:58]}  Bf3+ {[%clk 0:00:32]} 43. Kd2 {[%clk 0:00:58]} 1-0


[Site "https://www.chess.com"]

[Event "Titled Tuesday Blitz April 05 Early 2022"]
[White "Onslow, Alfie"]
[Black "Pliukha, Myhajlo"]
[WhiteFideId "436976"]
[BlackFideId "14164698"]
[WhiteElo "1884"]
[BlackElo "2229"]
[Result "0-1"]
[Round "02"]
[TimeControl "180+1"]
[Date "2022.04.05"]
[WhiteClock "0:00:07"]
[BlackClock "0:01:19"]

1. Nf3 {[%clk 0:03:00]}  f5 {[%clk 0:02:29]} 2. e4 {[%clk 0:02:52]}  e5 {[%clk 0:02:28]} 3. exf5 {[%clk 0:02:44]}  Nf6 {[%clk 0:02:20]} 4. Nxe5 {[%clk 0:02:26]}  Qe7 {[%clk 0:02:13]} 5. Qe2 {[%clk 0:02:26]}  d6 {[%clk 0:02:13]} 6. Nf3 {[%clk 0:02:21]}  Bxf5 {[%clk 0:02:13]} 7. Qxe7+ {[%clk 0:02:19]}  Bxe7 {[%clk 0:02:09]} 8. d3 {[%clk 0:02:20]}  Nc6 {[%clk 0:02:07]} 9. c3 {[%clk 0:02:15]}  O-O-O {[%clk 0:02:05]} 10. Be3 {[%clk 0:02:15]}  d5 {[%clk 0:02:05]} 11. Nbd2 {[%clk 0:02:12]}  Rhe8 {[%clk 0:02:04]} 12. O-O-O {[%clk 0:02:00]}  Ng4 {[%clk 0:02:04]} 13. h3 {[%clk 0:01:41]}  Nxe3 {[%clk 0:01:55]} 14. fxe3 {[%clk 0:01:42]}  Bd6 {[%clk 0:01:52]} 15. g4 {[%clk 0:01:40]}  Bg6 {[%clk 0:01:51]} 16. Re1 {[%clk 0:01:28]}  Bg3 {[%clk 0:01:51]} 17. Re2 {[%clk 0:01:24]}  Bxd3 {[%clk 0:01:51]} 18. Rg2 {[%clk 0:01:24]}  Bxf1 {[%clk 0:01:44]} 19. Rxg3 {[%clk 0:01:22]}  Bd3 {[%clk 0:01:39]} 20. Nd4 {[%clk 0:01:21]}  Ne5 {[%clk 0:01:37]} 21. N2f3 {[%clk 0:01:18]}  Be4 {[%clk 0:01:36]} 22. Rf1 {[%clk 0:01:12]}  Rf8 {[%clk 0:01:28]} 23. Kd1 {[%clk 0:00:21]}  c5 {[%clk 0:01:26]} 24. Ne6 {[%clk 0:00:19]}  Rxf3 {[%clk 0:01:24]} 25. Rgxf3 {[%clk 0:00:18]}  Bxf3+ {[%clk 0:01:25]} 26. Ke1 {[%clk 0:00:13]}  Re8 {[%clk 0:01:21]} 27. Nxc5 {[%clk 0:00:13]}  b6 {[%clk 0:01:22]} 28. Nb3 {[%clk 0:00:13]}  Bg2 {[%clk 0:01:20]} 29. Rg1 {[%clk 0:00:12]}  Nf3+ {[%clk 0:01:20]} 30. Kf2 {[%clk 0:00:13]}  Nxg1 {[%clk 0:01:21]} 31. Kxg2 {[%clk 0:00:12]}  Ne2 {[%clk 0:01:22]} 32. Kf3 {[%clk 0:00:12]}  Ng1+ {[%clk 0:01:20]} 33. Kg2 {[%clk 0:00:13]}  Nxh3 {[%clk 0:01:20]} 34. Kxh3 {[%clk 0:00:13]}  Rxe3+ {[%clk 0:01:20]} 35. Kh4 {[%clk 0:00:13]}  a5 {[%clk 0:01:20]} 36. Nd4 {[%clk 0:00:13]}  Kd7 {[%clk 0:01:20]} 37. Nf5 {[%clk 0:00:13]}  Re2 {[%clk 0:01:20]} 38. Nxg7 {[%clk 0:00:13]}  Rxb2 {[%clk 0:01:21]} 39. Nh5 {[%clk 0:00:11]}  Kd6 {[%clk 0:01:20]} 40. Nf6 {[%clk 0:00:12]}  Rxa2 {[%clk 0:01:20]} 41. Kg5 {[%clk 0:00:11]}  a4 {[%clk 0:01:18]} 42. Nxh7 {[%clk 0:00:11]}  a3 {[%clk 0:01:19]} 43. Nf6 {[%clk 0:00:10]}  Re2 {[%clk 0:01:19]} 44. Kf4 {[%clk 0:00:06]}  a2 {[%clk 0:01:19]} 45. Kf3 {[%clk 0:00:07]}  Re6 {[%clk 0:01:19]} 0-1


[Site "https://www.chess.com"]